bitfinex-derivatives/quotes_ETHF0:USTF0_20250323
["timestamp","ask_amount","ask_price","bid_price","bid_amount"]
[1742757383089,2.01071145,1995.4,1995.3,5.58513]
[1742757383285,2.01071145,1995.4,1995.3,8.75613]
[1742757388989,1.36521145,1995.4,1995.3,8.75613]
[1742757389288,0.00751145,1995.4,1995.3,8.75613]
[1742757389475,1.36981145,1995.4,1995.3,8.75613]
[1742757411887,1.36981145,1995.4,1995.3,5.54833]
[1742757412085,1.36981145,1995.4,1995.3,8.75613]
[1742757417498,2.06691145,1995.4,1995.3,8.75613]
[1742757420006,0.00751145,1995.4,1995.3,8.75613]
[1742757420202,1.38611145,1995.4,1995.3,8.75613]
[1742757422606,5.51758018,1995.8,1995.7,1.00233]
[1742757422799,26.47213729,1996.6,1995.9,1.00223]
[1742757422800,0.6573,1996.0,1995.9,1.00223]
[1742757423101,0.6573,1996.0,1995.9,7.38003]
[1742757423304,1.3963,1996.3,1996.2,1.00208]
[1742757423505,1.3963,1996.3,1996.2,4.17208]
[1742757424000,1.3963,1996.3,1996.2,5.50868]
[1742757424602,2.0763,1996.3,1996.2,5.50868]
[1742757425809,0.68,1996.3,1996.2,11.46668]
[1742757426003,0.00751145,1996.4,1996.3,1.00203]
[1742757426202,0.00751145,1996.4,1996.3,5.59713]
[1742757426403,1.45e-06,1996.4,1996.3,5.59713]
[1742757429007,1.45e-06,1996.4,1996.3,8.09713]
[1742757429308,0.68,1996.7,1996.6,1.00188]
[1742757429508,0.68,1996.7,1996.6,7.37868]
[1742757430418,0.68,1996.7,1996.6,4.17088]
[1742757430912,2.7717,1996.7,1996.6,4.17088]
[1742757436108,2.7717,1996.7,1996.6,7.37868]
[1742757437902,2.7717,1996.7,1996.6,3.2078]
[1742757438109,2.7717,1996.7,1996.6,6.3758]
[1742757438302,2.7717,1996.7,1996.6,7.37768]
[1742757439115,3.77353,1996.7,1996.4,4.558]
[1742757439316,1.3018,1996.6,1996.5,3.168]
[1742757439508,1.3018,1996.6,1996.5,4.16993]
[1742757440112,1.3018,1996.6,1996.5,5.52013]
[1742757444616,0.68,1996.7,1996.6,1.00188]
[1742757444822,2.0629,1996.7,1996.6,5.55408]
[1742757445713,2.769,1996.7,1996.6,5.55408]
[1742757452521,0.00751145,1996.8,1996.7,1.00183]
[1742757452723,0.00751145,1996.8,1996.7,5.52473]
[1742757453221,1.31861145,1996.8,1996.7,5.52473]
[1742757455820,0.00751145,1996.8,1996.7,11.48273]
[1742757457630,2.7695,1997.3,1997.2,1.00158]
[1742757457928,2.7695,1997.3,1997.2,4.16958]
[1742757459528,2.7695,1997.3,1997.1,1.74014922]
[1742757459529,2.7695,1997.3,1997.1,0.00751145]
[1742757459724,2.30608,1997.2,1997.1,2.104]
[1742757462333,2.30608,1997.2,1997.1,1.04]
[1742757463822,1.00163,1997.1,1997.0,0.00751145]
[1742757464024,2.40213,1997.1,1997.0,3.17451145]
[1742757464535,5.60993,1997.1,1997.0,0.00751145]
[1742757466627,2.40213,1997.1,1997.0,0.00751145]
[1742757467640,5.60993,1997.1,1997.0,0.00751145]
[1742757470238,6.64557098,1997.1,1997.0,0.00751145]
[1742757474438,5.60993,1997.1,1997.0,0.00751145]
[1742757476048,5.60993,1997.1,1997.0,1.29651145]
[1742757476647,2.40213,1997.1,1997.0,1.29651145]
[1742757477234,2.40213,1997.1,1997.0,0.00751145]
[1742757477438,2.40213,1997.1,1997.0,1.00919145]
[1742757478044,2.40213,1997.1,1997.0,2.41789145]
[1742757478640,2.40213,1997.1,1997.0,1.41621145]
[1742757479449,2.40213,1997.1,1997.0,2.41789145]
[1742757480445,2.40213,1997.1,1997.0,1.41621145]
[1742757480745,2.40213,1997.1,1997.0,2.41789145]
[1742757481336,2.40213,1997.1,1997.0,0.00751145]
[1742757481536,2.40213,1997.1,1996.5,1.65408]
[1742757481537,1.00188,1996.6,1996.5,1.65408]
[1742757481743,5.71227,1996.8,1996.5,3.167]
[1742757481945,5.71227,1996.8,1996.2,4.20985]
[1742757481946,1.00203,1996.3,1996.2,4.20985]
[1742757482152,1.00203,1996.3,1996.2,4.16905]
[1742757482647,1.00203,1996.3,1996.2,3.167]
[1742757482947,1.00208,1996.2,1996.1,3.17451145]
[1742757483247,5.50848,1996.2,1996.1,3.17451145]
[1742757483456,2.30068,1996.2,1996.1,0.00751145]
[1742757483948,5.50848,1996.2,1996.1,0.00751145]
[1742757485450,5.50848,1996.2,1996.1,4.17664145]
[1742757485451,1.2986,1996.2,1996.1,4.17664145]
[1742757485650,0.00751145,1996.3,1996.2,1.00208]
[1742757485848,0.00751145,1996.3,1996.2,2.37478]
[1742757486153,1.29081145,1996.3,1996.2,2.37478]
[1742757486451,2.29284145,1996.3,1996.2,2.37478]
[1742757486749,0.00751145,1996.3,1996.2,2.37478]
[1742757487353,0.00751145,1996.3,1996.2,5.58258]
[1742757487553,4.57071827,1996.7,1996.6,1.00188]
[1742757487852,4.57071827,1996.7,1996.6,4.16988]
[1742757488253,4.57071827,1996.7,1996.6,6.21828]
[1742757488558,5.57254827,1996.7,1996.6,4.5407]
[1742757488847,6.92704827,1996.7,1996.6,4.5407]
[1742757489954,6.92704827,1996.7,1996.6,1.3727]
[1742757490149,6.92704827,1996.7,1996.6,4.5427]
[1742757491952,6.92704827,1996.7,1996.3,3.171]
[1742757491953,9.13301827,1996.7,1996.3,3.171]
[1742757492152,2.0095,1996.6,1996.1,5.60930145]
[1742757492458,1.00203,1996.3,1996.2,3.172]
[1742757493458,2.32023,1996.3,1996.2,3.172]
[1742757494053,2.32023,1996.3,1996.2,4.5893]
[1742757495954,2.32023,1996.3,1996.2,1.4173]
[1742757496153,1.00208,1996.2,1996.1,0.00751145]
[1742757496356,3.11528,1996.2,1996.1,0.00751145]
[1742757496656,3.11528,1996.2,1996.1,1.32451145]
[1742757497559,3.11528,1996.2,1996.1,0.00751145]
[1742757508555,8.97728,1996.2,1996.1,0.00751145]
[1742757511058,16.15044,1996.2,1995.7,0.6937]
[1742757511264,1.00223,1995.9,1995.8,1.3968]
[1742757511461,4.21003,1995.9,1995.8,1.3968]
[1742757512665,4.91023,1995.9,1995.8,1.3968]
[1742757519374,1.70243,1995.9,1995.8,1.3968]
[1742757521168,3.02453,1995.9,1995.8,1.3968]
[1742757523873,9.0698,1996.2,1995.8,1.3968]
[1742757524066,1.00213,1996.1,1996.0,1.00218]
[1742757524376,1.00213,1996.1,1996.0,2.40918]
[1742757526978,3.2078,1996.2,1996.1,1.00213]
[1742757526979,4.20988,1996.2,1996.1,1.00213]
[1742757527180,4.20988,1996.2,1996.1,2.34763]
[1742757527474,4.57071827,1996.7,1996.2,2.50517]
[1742757527675,9.09081827,1996.7,1996.3,5.1688]
[1742757527887,1.00195,1996.5,1996.4,2.34743]
[1742757528981,1.00191,1996.6,1996.5,1.00193]
[1742757529181,8.78037827,1996.7,1996.6,1.00188]
[1742757529578,8.78037827,1996.7,1996.6,2.33588]
[1742757530880,5.57257827,1996.7,1996.6,2.33588]
[1742757531182,4.57071827,1996.7,1996.6,2.33588]
[1742757532173,4.57071827,1996.7,1996.6,5.54368]
[1742757532485,2.78689537,1996.7,1996.6,8.04368]
[1742757532685,1.29289537,1996.7,1996.6,8.04368]
[1742757533279,0.00751145,1996.8,1996.7,1.00183]
[1742757533482,1.70411,1997.4,1997.2,1.00153]
[1742757533675,1.70411,1997.4,1996.8,2.5044]
[1742757533676,3.2078,1997.5,1997.4,1.00148]
[1742757533884,1.00143,1997.5,1997.3,4.17948]
[1742757534078,1.00143,1997.5,1997.3,3.178]
[1742757534273,7.09051641,1997.6,1997.4,1.00147]
[1742757534478,5.77331641,1997.6,1997.5,3.18]
[1742757534682,4.77189641,1997.6,1997.5,4.18143]
[1742757535482,3.21531145,1997.7,1997.6,1.00138]
[1742757536684,3.21531145,1997.7,1997.6,2.35218]
[1742757537082,4.21664145,1997.7,1997.6,1.3508]
[1742757537286,4.21664145,1997.7,1997.6,2.35218]
[1742757537678,3.21531145,1997.7,1997.6,2.35218]
[1742757537879,4.21664145,1997.7,1997.6,2.35218]
[1742757538480,4.21664145,1997.7,1997.6,1.3508]
[1742757538685,3.21531145,1997.7,1997.6,2.35218]
[1742757539180,0.00751145,1997.7,1997.6,2.35218]
[1742757539585,0.00751145,1997.7,1997.6,5.55998]
[1742757540392,0.00751145,1997.7,1997.6,8.05998]
[1742757542492,2.98258,1998.3,1997.6,13.0166]
[1742757542693,2.98258,1998.3,1998.1,1.00111]
[1742757542886,2.98258,1998.3,1998.2,4.5604]
[1742757543087,1.9815,1998.3,1998.2,4.5604]
[1742757543284,1.67733,1998.3,1998.2,4.5604]
[1742757543583,0.00751145,1998.4,1998.2,4.5604]
[1742757543786,0.00751145,1998.4,1998.3,1.00103]
[1742757546289,0.00751145,1998.4,1998.3,6.70883]
[1742757548901,0.00751145,1998.4,1998.3,4.20883]
[1742757549096,0.00751145,1998.4,1998.3,6.70883]
[1742757550298,0.00751145,1998.4,1998.3,4.18803]
[1742757550497,1.40001145,1998.4,1998.3,4.18803]
[1742757555006,2.40099145,1998.4,1998.3,4.18803]
[1742757555304,2.40099145,1998.4,1998.3,3.187]
[1742757555707,1.40001145,1998.4,1998.3,4.18803]
[1742757556106,1.40001145,1998.4,1998.3,1.00103]
[1742757556308,1.40001145,1998.4,1998.3,4.18703]
[1742757556508,2.40099145,1998.4,1998.3,4.18703]
[1742757558911,1.00103,1998.3,1998.2,2.37646]
[1742757559112,1.9914,1998.3,1998.2,5.56146]
[1742757559609,2.99243,1998.3,1998.1,4.2089]
[1742757559805,2.34678,1998.2,1998.0,8.27144]
[1742757560006,1.3457,1998.1,1998.0,8.27144]
[1742757560312,2.0277,1998.1,1998.0,11.45744]
[1742757561204,2.0277,1998.1,1998.0,5.49944]
[1742757562611,2.0277,1998.1,1998.0,8.70724]
[1742757563410,0.6457,1998.3,1998.2,1.00108]
[1742757563608,0.00751145,1998.4,1998.3,1.00103]
[1742757563804,0.00751145,1998.4,1998.3,2.38253]
[1742757569418,1.00082,1998.8,1998.3,2.38253]
[1742757569419,9.0698,1999.1,1998.6,2.50214]
[1742757569714,3.02679,1999.0,1998.8,1.00074]
[1742757569915,1.3793,1998.9,1998.8,2.40664]
[1742757570105,2.38003,1998.9,1998.8,3.187]
[1742757570509,2.38003,1998.9,1998.7,1.41341145]
[1742757570510,1.3793,1998.9,1998.7,1.41341145]
[1742757570712,2.38008,1998.8,1998.7,0.00751145]
[1742757570917,2.38008,1998.8,1998.7,3.19451145]
[1742757572711,1.3793,1998.8,1998.7,4.19534145]
[1742757572911,2.38008,1998.8,1998.7,4.58671145]
[1742757573619,1.3793,1998.8,1998.7,5.58754145]
[1742757574119,2.38008,1998.8,1998.7,4.58671145]
[1742757575117,2.38008,1998.8,1998.7,3.19451145]
[1742757577524,2.38008,1998.8,1998.7,0.00751145]
[1742757577918,2.38008,1998.8,1998.7,3.19151145]
[1742757578119,2.38008,1998.8,1998.7,4.47641145]
[1742757578814,2.38008,1998.8,1998.7,4.47541145]
[1742757580326,2.38008,1998.8,1998.7,4.47441145]
[1742757580527,2.38008,1998.8,1998.7,1.29241145]
[1742757581030,2.38008,1998.8,1998.7,4.47441145]
[1742757582325,1.3793,1998.8,1998.7,5.47524145]
[1742757587834,2.38008,1998.8,1998.7,5.47524145]
[1742757588129,1.3793,1998.8,1998.7,1.29241145]
[1742757588329,2.38008,1998.8,1998.7,3.18951145]
[1742757589936,2.38008,1998.8,1998.7,4.58511145]
[1742757590132,2.38008,1998.8,1998.7,5.58594145]
[1742757590528,1.3793,1998.8,1998.7,5.58594145]
[1742757592237,2.38008,1998.8,1998.7,5.58594145]
[1742757593339,1.3793,1998.8,1998.7,5.58594145]
[1742757594134,2.93366,1998.9,1998.7,4.58511145]
[1742757594337,2.93366,1998.9,1998.8,1.3546]
[1742757594536,1.64376,1998.9,1998.8,1.3546]
[1742757605557,1.64376,1998.9,1998.8,2.35538]
[1742757605856,1.64376,1998.9,1998.8,1.3546]
[1742757608649,1.64376,1998.9,1998.8,2.35538]
[1742757608853,0.643,1998.9,1998.8,2.35538]
[1742757609153,1.64373,1998.9,1998.8,1.3546]
[1742757609351,0.643,1998.9,1998.8,2.35538]
[1742757610257,2.0195,1998.9,1998.8,2.35538]
[1742757610454,0.643,1998.9,1998.8,1.3546]
[1742757610653,2.0195,1998.9,1998.8,2.35538]
[1742757611051,3.02023,1998.9,1998.8,2.35538]
[1742757611257,3.02023,1998.9,1998.8,1.3546]
[1742757612160,3.02023,1998.9,1998.8,2.35538]
[1742757614152,2.0195,1998.9,1998.8,2.35538]
[1742757617457,2.0195,1998.9,1998.7,0.00751145]
[1742757617663,1.00083,1998.7,1998.6,3.178]
[1742757617851,1.4099,1998.8,1998.6,3.178]
[1742757618052,1.00083,1998.7,1998.6,3.178]
[1742757619063,1.00088,1998.6,1998.5,3.18651145]
[1742757620955,1.69098,1998.6,1998.5,3.18651145]
[1742757622551,1.69098,1998.6,1998.5,4.54071145]
[1742757622754,0.6901,1998.6,1998.5,5.54164145]
[1742757622960,1.69098,1998.6,1998.5,5.54164145]
[1742757623152,3.08248,1998.6,1998.5,5.54164145]
[1742757626665,3.08248,1998.6,1998.5,5.53764145]
[1742757628460,2.0816,1998.6,1998.5,5.53764145]
[1742757646875,2.7206,1998.6,1998.5,5.53764145]
[1742757649186,0.639,1998.6,1998.5,5.53764145]
[1742757652274,1.3605,1998.7,1998.6,1.00088]
[1742757652480,1.3605,1998.7,1998.6,5.59328]
[1742757659886,1.3605,1998.7,1998.6,2.38548]
[1742757663894,1.3605,1998.7,1998.6,5.55048]
[1742757670391,0.6815,1998.8,1998.7,1.00083]
[1742757670591,2.0652,1998.8,1998.7,2.28383]
[1742757672995,0.6838,1998.9,1998.8,1.00078]
[1742757673200,2.7249,1998.9,1998.8,5.55238]
[1742757679203,3.72563,1998.9,1998.8,3.165]
[1742757680903,1.00078,1998.8,1998.7,2.33851]
[1742757681105,2.39258,1998.8,1998.7,5.50351]
[1742757681403,2.39258,1998.8,1998.7,4.16581]
[1742757681703,2.39258,1998.8,1998.7,3.165]
[1742757682402,1.00083,1998.7,1998.6,2.40545]
[1742757682604,1.4079,1998.7,1998.6,5.57045]
[1742757687098,2.36015,1998.9,1998.6,4.5696]
[1742757687299,1.3729,1998.8,1998.7,2.37858]
[1742757687599,1.3729,1998.8,1998.7,5.54358]
[1742757688404,2.37368,1998.8,1998.7,5.54358]
[1742757690307,1.3729,1998.8,1998.7,5.54358]
[1742757694311,2.37368,1998.8,1998.7,4.5428]
[1742757694806,2.37368,1998.8,1998.7,5.54363]
[1742757695598,2.37368,1998.8,1998.7,4.5428]
[1742757697115,2.37368,1998.8,1998.7,5.54363]
[1742757698110,1.3729,1998.8,1998.7,5.54363]
[1742757698506,2.37368,1998.8,1998.7,5.54363]
[1742757698706,1.3729,1998.8,1998.7,5.54363]
[1742757699416,2.37368,1998.8,1998.7,5.54363]
[1742757702819,1.3729,1998.8,1998.7,5.54363]
[1742757703019,2.37368,1998.8,1998.7,5.54363]
[1742757710317,1.3729,1998.8,1998.7,5.54363]
[1742757729122,1.3729,1998.8,1998.7,4.16583]
[1742757729835,1.3729,1998.8,1998.7,5.51663]
[1742757734439,2.37368,1998.8,1998.7,5.51663]
[1742757734636,2.37368,1998.8,1998.6,3.2078]
[1742757734637,1.00083,1998.7,1998.6,3.2078]
[1742757734841,1.00088,1998.6,1998.5,3.17251145]
[1742757735037,2.32398,1998.6,1998.5,2.10951145]
[1742757735632,2.32398,1998.6,1998.4,1.00097]
[1742757735936,2.37433,1998.5,1998.4,4.16597]
[1742757738845,2.37433,1998.5,1998.4,3.165]
[1742757740032,2.37433,1998.5,1998.4,4.16598]
[1742757740233,2.37433,1998.5,1998.4,3.165]
[1742757740841,2.37433,1998.5,1998.4,4.16598]
[1742757741237,2.37433,1998.5,1998.4,3.165]
[1742757742937,2.37433,1998.5,1998.4,4.16598]
[1742757743144,2.37433,1998.5,1998.4,5.55198]
[1742757746845,1.3734,1998.5,1998.4,5.55198]
[1742757748243,2.37433,1998.5,1998.4,5.55198]
[1742757749946,1.3734,1998.5,1998.4,5.55198]
[1742757750142,1.3231,1998.6,1998.5,1.00093]
[1742757750143,0.6633,1998.6,1998.5,1.00093]
[1742757750435,0.6633,1998.6,1998.5,2.34613]
[1742757751547,1.9438,1998.6,1998.5,2.34613]
[1742757752548,0.6633,1998.6,1998.5,2.34613]
[1742757752848,1.3744,1998.7,1998.6,1.00088]
[1742757753149,1.3744,1998.7,1998.6,5.53308]
[1742757753850,2.37523,1998.7,1998.6,5.53308]
[1742757754554,2.37523,1998.7,1998.6,4.5322]
[1742757755976,5.58303,1998.7,1998.6,4.5322]
[1742757758553,2.37523,1998.7,1998.6,4.5322]
[1742757759655,5.58303,1998.7,1998.6,4.5322]
[1742757760955,5.58303,1998.7,1998.6,1.3672]
[1742757761357,1.00088,1998.6,1998.5,1.00092]
[1742757761547,2.33218,1998.6,1998.5,2.37882]
[1742757762547,2.33218,1998.6,1998.5,1.3779]
[1742757787977,2.33218,1998.6,1998.5,2.37883]
[1742757789376,1.3313,1998.6,1998.5,2.37883]
[1742757789681,5.862,1998.8,1998.7,1.00083]
[1742757789976,5.862,1998.8,1998.7,4.16583]
[1742757790372,5.862,1998.8,1998.7,6.20203]
[1742757792476,2.29618,1998.8,1998.7,4.5232]
[1742757792680,1.00095,1998.5,1998.4,4.16595]
[1742757792978,1.00095,1998.5,1998.4,5.52055]
[1742757793878,2.29631,1998.6,1998.5,1.00093]
[1742757794080,2.29631,1998.6,1998.5,2.35553]
[1742757794278,2.29631,1998.6,1998.5,3.00473]
[1742757794776,2.29631,1998.6,1998.5,2.35553]
[1742757799879,1.2954,1998.6,1998.5,2.35553]
[1742757800880,4.88044,1998.7,1998.6,1.00088]
[1742757801079,4.88044,1998.7,1998.6,2.34868]
[1742757802679,1.67264,1998.7,1998.6,2.34868]
[1742757802879,3.05914,1998.7,1998.6,2.34868]
[1742757806482,2.0583,1998.7,1998.6,5.51368]
[1742757806681,1.3865,1998.7,1998.6,5.51368]
[1742757807078,0.6828,1998.8,1998.7,1.00083]
[1742757807283,1.9601,1998.8,1998.7,2.36083]
[1742757809283,2.96088,1998.8,1998.7,2.36083]
[1742757813785,1.9601,1998.8,1998.7,2.36083]
[1742757814487,0.6828,1998.8,1998.7,2.36083]
[1742757814686,1.9835,1998.8,1998.7,3.05543]
[1742757815584,1.9835,1998.8,1998.7,2.36083]
[1742757824090,1.00073,1998.9,1998.8,1.00078]
[1742757824292,1.9673,1998.9,1998.8,5.50818]
[1742757824699,1.9673,1998.9,1998.8,8.71598]
[1742757824899,0.669,1998.9,1998.8,8.71598]
[1742757825099,0.669,1998.9,1998.8,9.37538]
[1742757831405,2.0216,1998.9,1998.8,9.37538]
[1742757836506,2.0216,1998.9,1998.8,8.71598]
[1742757837302,2.0216,1998.9,1998.8,5.50818]
[1742757842508,3.02233,1998.9,1998.8,5.50818]
[1742757842703,2.0216,1998.9,1998.7,1.0008]
[1742757842904,1.00092,1998.6,1998.4,1.00095]
[1742757843109,3.60056,1998.5,1998.3,0.00751145]
[1742757843306,2.31706,1998.5,1998.3,0.00751145]
[1742757843514,2.31706,1998.5,1998.4,3.164]
[1742757846415,2.31706,1998.5,1998.4,4.544]
[1742757848213,2.31706,1998.5,1998.4,5.54498]
[1742757848413,2.31706,1998.5,1998.4,4.544]
[1742757849315,2.31706,1998.5,1998.4,5.54498]
[1742757849718,2.31706,1998.5,1998.4,4.544]
[1742757849916,2.31706,1998.5,1998.4,5.54498]
[1742757851124,2.31706,1998.5,1998.4,4.544]
[1742757853422,2.31706,1998.5,1998.4,5.54498]
[1742757853815,2.31706,1998.5,1998.4,4.544]
[1742757854414,2.31706,1998.5,1998.4,5.54498]
[1742757854614,2.31706,1998.5,1998.4,4.544]
[1742757855324,1.00098,1998.4,1998.3,0.00751145]
[1742757855513,1.00119,1998.0,1997.9,3.164]
[1742757855917,1.00119,1998.0,1997.9,4.16523]
[1742757856223,1.00119,1998.0,1997.9,3.164]
[1742757856621,1.00123,1997.9,1997.8,0.00751145]
[1742757858032,1.67093,1997.9,1997.8,0.00751145]
[1742757858723,2.33843,1997.9,1997.8,0.00751145]
[1742757858923,2.33843,1997.9,1997.8,1.36751145]
[1742757859332,2.33843,1997.9,1997.8,2.36879145]
[1742757865131,2.33843,1997.9,1997.8,1.36751145]
[1742757865432,1.00143,1997.6,1997.5,1.0014]
[1742757865626,1.00143,1997.6,1997.5,5.5321]
[1742757866223,1.68823,1997.6,1997.5,5.5321]
[1742757866427,1.68823,1997.6,1997.5,2.3671]
[1742757866732,1.68823,1997.6,1997.5,5.5321]
[1742757867324,2.39877145,1997.7,1997.6,1.00138]
[1742757867523,2.39877145,1997.7,1997.6,2.41748]
[1742757868433,2.39877145,1997.7,1997.6,1.4161]
[1742757868934,2.39877145,1997.7,1997.6,2.41748]
[1742757880028,0.00751145,1997.7,1997.6,2.41748]
[1742757880344,0.00751145,1997.7,1997.6,6.28958]
[1742757880536,0.00751145,1997.7,1997.6,6.93228]
[1742757882340,1.00884145,1997.7,1997.6,2.41748]
[1742757882543,1.00144,1997.5,1997.4,1.00146]
[1742757882735,1.00144,1997.5,1997.4,3.166]
[1742757883747,1.00144,1997.5,1997.4,4.16748]
[1742757884341,1.64084,1997.5,1997.4,4.16748]
[1742757884538,0.6394,1997.5,1997.4,4.16748]
[1742757885049,2.92033,1997.5,1997.4,4.16748]
[1742757886542,2.92033,1997.5,1997.4,3.166]
[1742757886746,2.92033,1997.5,1997.4,4.16748]
[1742757886945,2.92033,1997.5,1997.4,5.55458]
[1742757887945,2.92033,1997.5,1997.4,4.5531]
[1742757888142,2.92033,1997.5,1997.4,5.55458]
[1742757888945,2.92033,1997.5,1997.4,4.5531]
[1742757889158,2.92033,1997.5,1997.4,5.55458]
[1742757890043,2.92033,1997.5,1997.4,2.38858]
[1742757890250,2.92033,1997.5,1997.4,1.3871]
[1742757890449,2.92033,1997.5,1997.4,2.38858]
[1742757891944,2.92033,1997.5,1997.4,1.3871]
[1742757893151,2.92033,1997.5,1997.4,2.38858]
[1742757904962,1.9189,1997.5,1997.4,2.38858]
[1742757905155,2.92033,1997.5,1997.4,2.38858]
[1742757905554,1.9189,1997.5,1997.4,2.38858]
[1742757907165,2.92033,1997.5,1997.4,2.38858]
[1742757913968,0.00751145,1997.7,1997.6,1.00138]
[1742757914266,1.00884145,1997.7,1997.6,4.16738]
[1742757914457,2.67811145,1997.7,1997.6,5.52358]
[1742757917265,3.67944145,1997.7,1997.6,5.52358]
[1742757917665,1.98491145,1997.7,1997.6,5.52358]
[1742757919069,2.98624145,1997.7,1997.6,5.52358]
[1742757919972,1.98491145,1997.7,1997.6,5.52358]
[1742757923967,0.68531145,1997.7,1997.6,5.52358]
[1742757924273,0.00751145,1997.7,1997.6,5.52358]
[1742757924667,1.39441145,1997.7,1997.6,5.52358]
[1742757927368,2.39574145,1997.7,1997.6,5.52358]
[1742757927765,2.39574145,1997.7,1997.6,1.3562]
[1742757928067,4.60221145,1997.7,1997.5,3.166]
[1742757928268,2.7519,1997.6,1997.5,3.166]
[1742757928474,3.75328,1997.6,1997.5,3.166]
[1742757929980,3.75328,1997.6,1997.5,1.00143]
[1742757931268,1.00143,1997.5,1997.4,3.166]
[1742757931472,1.3694,1997.5,1997.4,4.16744]
[1742757932571,2.37083,1997.5,1997.4,4.16744]
[1742757934474,2.37083,1997.5,1997.4,1.00144]
[1742757934774,2.37083,1997.5,1997.4,4.16744]
[1742757940383,2.37083,1997.5,1997.4,5.53384]
[1742757950191,1.3694,1997.5,1997.4,5.53384]
[1742757950887,2.37083,1997.5,1997.4,5.53384]
[1742757951790,1.3694,1997.5,1997.4,5.53384]
[1742757952994,2.37083,1997.5,1997.4,5.53384]
[1742757956495,2.37083,1997.5,1997.4,4.5324]
[1742757957595,2.37083,1997.5,1997.4,5.53388]
[1742757959906,1.3694,1997.5,1997.4,5.53388]
[1742757960308,0.00751145,1997.7,1997.6,1.00138]
[1742757960609,1.34011145,1997.7,1997.6,7.37418]
[1742757960913,0.00751145,1997.7,1997.6,9.87418]
[1742757961809,0.00751145,1997.7,1997.6,7.37418]
[1742757965912,0.00751145,1997.7,1997.6,13.33218]
[1742757966713,0.00751145,1997.7,1997.6,10.16718]
[1742757966901,1.00884145,1997.7,1997.6,12.3308]
[1742757967106,1.68144145,1997.7,1997.6,10.4754]
[1742757967611,1.68144145,1997.7,1997.6,9.123]
[1742757967812,1.68144145,1997.7,1997.6,3.165]
[1742757968009,1.00138,1997.6,1997.5,4.5174]
[1742757968204,3.00618,1997.6,1997.5,3.165]
[1742757974120,1.00149,1997.4,1997.3,4.1665]
[1742757974612,1.00149,1997.4,1997.3,2.3393]
[1742757974807,0.7032,1997.4,1997.3,5.5043]
[1742757975205,1.70468,1997.4,1997.3,5.5043]
[1742757975411,3.11168,1997.4,1997.3,5.5043]
[1742757976208,3.11168,1997.4,1997.3,4.5028]
[1742757976516,3.11168,1997.4,1997.3,5.50433]
[1742757978704,3.11168,1997.4,1997.3,4.5028]
[1742757979017,3.11168,1997.4,1997.3,5.50433]
[1742757980317,3.11168,1997.4,1997.3,4.5028]
[1742757988322,3.11168,1997.4,1997.3,5.50433]
[1742757988918,3.11168,1997.4,1997.3,2.33933]
[1742757989120,3.11168,1997.4,1997.3,5.50433]
[1742757991620,3.11168,1997.4,1997.3,4.5028]
[1742757995230,3.11168,1997.4,1997.3,5.50433]
[1742758004436,3.11168,1997.4,1997.3,4.5028]
[1742758004633,4.61396,1997.4,1996.9,3.8887]
[1742758004937,1.00183,1996.7,1996.6,4.20966]
[1742758005131,3.2078,1997.1,1996.9,1.00168]
[1742758005434,1.00174,1996.9,1996.8,1.00176]
[1742758005636,1.00174,1996.9,1996.8,2.30206]
[1742758006439,1.00178,1996.8,1996.7,4.1668]
[1742758008432,1.00177,1996.9,1996.8,1.00178]
[1742758008638,1.00177,1996.9,1996.8,2.33518]
[1742758008846,1.00177,1996.9,1996.8,1.3334]
[1742758009142,1.00177,1996.9,1996.8,2.33518]
[1742758009337,1.00177,1996.9,1996.8,1.3334]
[1742758010143,1.00177,1996.9,1996.8,2.33518]
[1742758010642,1.00173,1996.9,1996.8,2.33518]
[1742758019650,1.00173,1996.9,1996.8,1.3334]
[1742758020556,2.29063,1996.9,1996.8,1.3334]
[1742758021158,2.29063,1996.9,1996.8,2.33518]
[1742758022990,2.29063,1996.9,1996.8,1.3334]
[1742758024288,2.29063,1996.9,1996.8,2.33518]
[1742758025087,2.29063,1996.9,1996.8,1.3334]
[1742758025789,2.29063,1996.9,1996.8,2.33518]
[1742758025985,1.00178,1996.8,1996.7,4.16679]
[1742758026284,1.304,1996.8,1996.7,5.51989]
[1742758027379,2.30578,1996.8,1996.7,5.51989]
[1742758030157,2.30578,1996.8,1996.7,1.3531]
[1742758030362,1.00183,1996.7,1996.6,3.166]
[1742758030564,3.81613,1996.7,1996.6,4.5715]
[1742758030766,3.81613,1996.7,1996.6,1.4055]
[1742758031263,3.81613,1996.7,1996.6,2.40738]
[1742758032566,2.8143,1996.7,1996.2,51.5908]
[1742758032763,2.29358,1996.6,1996.5,1.3181]
[1742758032963,2.30109145,1996.6,1996.5,2.32003]
[1742758033669,2.30109145,1996.6,1996.5,1.3181]
[1742758034773,0.00751145,1996.6,1996.5,2.32003]
[1742758035270,0.00751145,1996.6,1996.5,5.48603]
[1742758037774,3.65074243,1997.4,1997.3,1.00153]
[1742758037959,3.65074243,1997.4,1997.3,4.16753]
[1742758038472,4.65222243,1997.4,1997.3,4.16753]
[1742758038668,6.06102243,1997.4,1997.3,5.52983]
[1742758038970,6.06102243,1997.4,1997.3,4.5283]
[1742758039377,6.06102243,1997.4,1997.3,5.52983]
[1742758039570,5.05954243,1997.4,1997.3,5.52983]
[1742758040575,6.06102243,1997.4,1997.3,5.52983]
[1742758041166,6.06102243,1997.4,1997.3,4.5283]
[1742758041167,5.05954243,1997.4,1997.3,4.5283]
[1742758041374,6.06102243,1997.4,1997.3,4.5283]
[1742758041774,6.06102243,1997.4,1997.3,5.52983]